bitfinex/quotes_SOLUSD_20220307
["timestamp","ask_amount","ask_price","bid_price","bid_amount"]
[1646628988363,0.12216825,82.576,82.491,17.9572]
[1646628988562,1.62926979,82.568,82.491,17.9572]
[1646628988762,6.058,82.575,82.469,15.61725298]
[1646628988763,126.59268856,82.566,82.492,24.3208]
[1646628988965,121.9,82.564,82.492,24.3208]
[1646628989166,6.058,82.563,82.492,24.3208]
[1646628989363,1.62926979,82.56,82.471,24.3208]
[1646628989564,0.12107891,82.554,82.471,24.3208]
[1646628989763,0.12107891,82.551,82.471,24.3208]
[1646628990165,146.1525,82.55,82.471,24.3208]
[1646628990364,153.6625,82.55,82.471,24.3208]
[1646628990566,121.9,82.548,82.471,24.3208]
[1646628990765,6.059,82.547,82.471,24.3208]
[1646628990965,6.059,82.547,82.456,2.83613526]
[1646628991367,0.12107891,82.544,82.456,2.83613526]
[1646628991565,4.73329814,82.542,82.456,1.33613526]
[1646628991765,121.9,82.54,82.456,1.33613526]
[1646628991966,121.9,82.537,82.456,1.33613526]
[1646628992166,6.059,82.536,82.456,1.33613526]
[1646628993169,6.059,82.536,82.457,61.43942311]
[1646628993770,121.9,82.537,82.457,61.43942311]
[1646628994772,6.059,82.536,82.457,61.43942311]
[1646628997272,121.9,82.534,82.457,61.43942311]
[1646628997471,6.059,82.533,82.457,61.43942311]
[1646628999873,6.059,82.536,82.457,61.43942311]
[1646629000276,127.959,82.537,82.457,61.43942311]
[1646629001574,127.459,82.537,82.457,61.43942311]
[1646629007606,6.059,82.537,82.457,61.43942311]
[1646629007807,6.059,82.537,82.46,18.1913]
[1646629008206,6.059,82.537,82.461,2.83613526]
[1646629009208,6.059,82.537,82.47,18.1889]
[1646629012214,6.059,82.537,82.47,36.608]
[1646629012615,6.059,82.538,82.47,54.12413526]
[1646629012814,70.100723,82.539,82.471,121.9]
[1646629013013,6.059,82.566,82.49,18.178]
[1646629013216,6.059,82.566,82.5,14.68]
[1646629013513,63.32459134,82.575,82.501,48.10791207]
[1646629013715,63.32459134,82.575,82.501,72.01121207]
[1646629014019,63.32459134,82.575,82.502,16.89171099]
[1646629014215,63.32459134,82.575,82.502,19.72784625]
[1646629014415,63.32459134,82.575,82.503,2.83613526]
[1646629014616,63.32459134,82.575,82.503,19.72784625]
[1646629014817,63.32459134,82.575,82.503,2.83613526]
[1646629015017,63.32459134,82.575,82.504,19.72784625]
[1646629015217,63.32459134,82.575,82.51,18.1752]
[1646629015417,63.32459134,82.575,82.51,32.8552]
[1646629015619,63.32459134,82.575,82.51,35.69133526]
[1646629017920,63.32459134,82.575,82.51,32.8552]
[1646629022623,63.32459134,82.575,82.51,35.69133526]
[1646629032934,63.32459134,82.575,82.51,52.58304625]
[1646629037037,63.32459134,82.575,82.53,18.1757]
[1646629037237,63.32459134,82.575,82.531,57.54990515]
[1646629037837,47.9673,82.589,82.531,57.54990515]
[1646629038938,64.16495418,82.588,82.531,57.54990515]
[1646629039139,47.9673,82.589,82.531,60.38604041]
[1646629039359,47.9673,82.589,82.54,18.1725]
[1646629039560,1.62926979,82.598,82.54,18.1725]
[1646629039760,6.056,82.619,82.541,2.83613526]
[1646629039761,1.62926979,82.602,82.541,2.83613526]
[1646629040560,1.62926979,82.603,82.541,2.83613526]
[1646629041161,1.62926979,82.603,82.55,18.1706]
[1646629042364,1.62926979,82.593,82.55,18.1706]
[1646629043167,1.62926979,82.594,82.55,18.1706]
[1646629043365,1.62926979,82.595,82.55,18.1706]
[1646629044166,1.62926979,82.595,82.55,36.4835]
[1646629044766,1.62926979,82.594,82.55,36.4835]
[1646629045166,1.62926979,82.596,82.55,36.4835]
[1646629045567,1.62926979,82.597,82.55,36.4835]
[1646629045967,1.62926979,82.596,82.55,36.4835]
[1646629046170,1.62926979,82.602,82.55,39.31963526]
[1646629046569,1.62926979,82.604,82.55,53.99963526]
[1646629046766,1.62926979,82.604,82.551,6.054]
[1646629047168,1.62926979,82.604,82.552,2.83613526]
[1646629047367,1.62926979,82.603,82.553,6.054]
[1646629047568,47.80166155,82.607,82.553,6.054]
[1646629047769,47.80166155,82.607,82.554,2.83613526]
[1646629047968,47.80166155,82.607,82.555,6.054]
[1646629048169,47.80166155,82.607,82.556,57.27254283]
[1646629048367,46.17239176,82.607,82.556,60.10867809]
[1646629048769,46.17239176,82.607,82.56,14.68]
[1646629048969,1.62926979,82.611,82.56,14.68]
[1646629049171,1.62926979,82.611,82.56,17.51613526]
[1646629049369,1.62926979,82.611,82.56,35.68363526]
[1646629051072,59.23698752,82.612,82.56,35.68363526]
[1646629052075,1.62926979,82.613,82.56,35.68363526]
[1646629052274,1.62926979,82.614,82.56,35.68363526]
[1646629052974,56.57164881,82.613,82.56,35.68363526]
[1646629053174,54.94237902,82.613,82.56,35.68363526]
[1646629056883,54.94237902,82.613,82.561,121.9]
[1646629057282,54.94237902,82.613,82.562,2.83613526]
[1646629057681,54.94237902,82.613,82.56,14.68]
[1646629058082,56.57164881,82.613,82.56,14.68]
[1646629058283,54.94237902,82.613,82.56,14.68]
[1646629058482,1.62926979,82.611,82.56,14.68]
[1646629058683,1.62926979,82.609,82.56,14.68]
[1646629058885,1.62926979,82.608,82.56,14.68]
[1646629059084,1.62926979,82.609,82.56,14.68]
[1646629059384,23.3472,82.61,82.56,14.68]
[1646629059582,23.3472,82.61,82.554,6.054]
[1646629059583,23.3472,82.61,82.555,17.9996]
[1646629060184,23.3472,82.61,82.56,18.1675]
[1646629061582,23.3472,82.61,82.555,17.9996]
[1646629061789,24.97646979,82.61,82.555,17.9996]
[1646629061985,1.62926979,82.609,82.555,17.9996]
[1646629062186,24.97646979,82.61,82.555,17.9996]
[1646629062383,23.3472,82.61,82.555,17.9996]
[1646629062885,24.97646979,82.61,82.555,17.9996]
[1646629063094,1.62926979,82.609,82.555,17.9996]
[1646629063686,1.62926979,82.608,82.555,17.9996]
[1646629064088,1.62926979,82.607,82.555,17.9996]
[1646629064290,1.62926979,82.608,82.554,6.054]
[1646629064690,1.62926979,82.605,82.554,6.054]
[1646629065294,1.62926979,82.606,82.554,6.054]
[1646629065508,1.62926979,82.605,82.554,6.054]
[1646629065689,1.62926979,82.606,82.554,6.054]
[1646629066792,6.054,82.609,82.554,6.054]
[1646629066793,1.62926979,82.604,82.554,6.054]
[1646629066994,1.62926979,82.603,82.554,6.054]
[1646629067395,1.62926979,82.604,82.554,6.054]
[1646629067593,1.62926979,82.603,82.554,6.054]
[1646629068595,1.62926979,82.602,82.554,6.054]
[1646629068795,1.62926979,82.603,82.554,6.054]
[1646629068995,1.62926979,82.603,82.56,18.1672]
[1646629069294,23.3472,82.61,82.56,18.1672]
[1646629069295,1.62926979,82.607,82.56,18.1672]
[1646629069497,1.62926979,82.608,82.56,18.1672]
[1646629070094,1.62926979,82.607,82.56,18.1672]
[1646629071100,1.62926979,82.606,82.56,18.1672]
[1646629072200,1.62926979,82.605,82.56,18.1672]
[1646629073023,1.62926979,82.606,82.56,18.1672]
[1646629073201,1.62926979,82.61,82.561,6.054]
[1646629073803,1.62926979,82.611,82.561,6.054]
[1646629074702,1.62926979,82.61,82.561,6.054]
[1646629075102,1.62926979,82.609,82.561,6.054]
[1646629075504,1.62926979,82.61,82.56,35.68333526]
[1646629075905,1.62926979,82.609,82.56,35.68333526]
[1646629076504,1.62926979,82.609,82.561,6.054]
[1646629076704,1.62926979,82.61,82.561,6.054]
[1646629076904,1.62926979,82.609,82.561,6.054]
[1646629077505,1.62926979,82.608,82.561,6.054]
[1646629077905,1.62926979,82.61,82.561,6.054]
[1646629078105,1.62926979,82.61,82.561,8.89013526]
[1646629078905,1.62926979,82.61,82.561,6.054]
[1646629079305,50.36255784,82.622,82.561,6.054]
[1646629079306,1.62926979,82.609,82.561,6.054]
[1646629079505,1.62926979,82.609,82.56,32.8472]
[1646629079709,1.62926979,82.608,82.56,32.8472]
[1646629079907,6.054,82.621,82.56,32.8472]
[1646629079908,1.62926979,82.607,82.56,32.8472]
[1646629080107,1.62926979,82.608,82.56,32.8472]
[1646629080308,1.62926979,82.607,82.56,14.68]
[1646629080533,1.62926979,82.605,82.56,14.68]
[1646629080707,1.62926979,82.603,82.552,6.054]
[1646629080908,1.62926979,82.597,82.552,6.054]
[1646629081409,27.60168638,82.596,82.552,6.054]
[1646629081610,29.23095617,82.596,82.552,6.054]
[1646629082313,36.93095617,82.596,82.527,2.83613526]
[1646629082510,1.62926979,82.585,82.527,20.62093526]
[1646629082711,22.671,82.595,82.527,20.62093526]
[1646629082712,1.62926979,82.583,82.527,20.62093526]
[1646629082910,1.62926979,82.583,82.527,2.83613526]
[1646629083716,1.62926979,82.586,82.527,2.83613526]
[1646629084118,1.62926979,82.587,82.527,2.83613526]
[1646629085117,1.62926979,82.587,82.53,18.1758]
[1646629085519,1.62926979,82.587,82.53,21.01193526]
[1646629085919,1.62926979,82.588,82.53,21.01193526]
[1646629086319,6.056,82.587,82.53,21.01193526]
[1646629087321,6.056,82.588,82.53,21.01193526]
[1646629087521,7.68526979,82.588,82.53,21.01193526]
[1646629087719,1.62926979,82.588,82.53,21.01193526]
[1646629087919,1.62926979,82.589,82.53,21.01193526]
[1646629088135,6.056,82.588,82.53,21.01193526]
[1646629089235,1.62926979,82.589,82.53,21.01193526]
[1646629089840,1.62926979,82.592,82.53,21.01193526]
[1646629090038,1.62926979,82.592,82.53,61.42228113]
[1646629090440,1.62926979,82.593,82.53,61.42228113]
[1646629090638,1.62926979,82.592,82.53,61.42228113]
[1646629091440,1.62926979,82.593,82.53,61.42228113]
[1646629091939,1.62926979,82.592,82.53,61.42228113]
[1646629094540,1.62926979,82.591,82.53,35.69193526]
[1646629095240,1.62926979,82.591,82.53,21.01193526]
[1646629095440,1.62926979,82.59,82.53,21.01193526]
[1646629096641,1.62926979,82.591,82.53,21.01193526]
[1646629098851,121.9,82.591,82.515,2.83613526]
[1646629099052,1.62926979,82.586,82.515,2.83613526]
[1646629099249,1.62926979,82.586,82.515,20.97583526]
[1646629099448,1.62926979,82.583,82.511,23.7776]
[1646629099648,1.62926979,82.576,82.511,23.7776]
[1646629099848,6.057,82.575,82.511,23.7776]
[1646629100049,7.68626979,82.575,82.511,23.7776]
[1646629100650,6.057,82.575,82.511,23.7776]
[1646629100850,4.64902114,82.575,82.495,2.83613526]
[1646629101050,1.62926979,82.56,82.479,33.37097892]
[1646629101249,1.62926979,82.551,82.479,18.0449]
[1646629101450,1.62926979,82.55,82.461,23.7053]
[1646629101649,7.68826979,82.549,82.462,6.06]
[1646629101854,4.71120456,82.558,82.47,18.1854]
[1646629101855,50.36255784,82.548,82.47,18.1854]
[1646629102052,23.9885,82.547,82.471,6.059]
[1646629102252,6.059,82.546,82.471,6.059]
[1646629105855,6.059,82.546,82.47,32.8654]
[1646629108257,6.059,82.546,82.47,57.32438027]
[1646629108858,48.9253,82.547,82.471,6.059]
[1646629109059,48.9253,82.547,82.48,18.1855]
[1646629109261,48.9253,82.547,82.481,6.059]
[1646629109958,48.9253,82.547,82.473,121.9]
[1646629109959,48.9253,82.547,82.474,141.41537786]
[1646629110160,1.62926979,82.57,82.49,18.1835]
[1646629110365,6.058,82.578,82.5,14.68]
[1646629110568,30.9395,82.571,82.501,6.057]
[1646629110761,77.93624263,82.571,82.502,52.28661986]
[1646629110961,77.93624263,82.571,82.503,6.057]
[1646629111162,77.93624263,82.571,82.503,8.89313526]
[1646629111561,77.93624263,82.571,82.504,2.83613526]
[1646629111861,24.8825,82.571,82.505,6.057]
[1646629112263,24.8825,82.571,82.51,18.1749]
[1646629112662,24.8825,82.571,82.51,32.8549]
[1646629112863,24.8825,82.571,82.51,35.69103526]
[1646629113265,24.8825,82.571,82.511,6.057]
[1646629114665,24.8825,82.571,82.52,18.1763]
[1646629115064,24.8825,82.571,82.521,2.83613526]
[1646629115469,6.057,82.586,82.521,2.83613526]
[1646629115666,55.21676211,82.591,82.522,6.056]
[1646629116466,78.70176211,82.591,82.522,6.056]
[1646629116876,80.3310319,82.591,82.522,6.056]
[1646629117272,78.70176211,82.591,82.53,18.1744]
[1646629117472,78.70176211,82.591,82.531,46.28669604]
[1646629117672,6.056,82.59,82.532,121.9]
[1646629117876,23.485,82.591,82.532,127.956]
[1646629118175,23.485,82.591,82.532,130.79213526]
[1646629118372,23.485,82.591,82.54,18.172]
[1646629118572,23.485,82.591,82.541,6.055]
[1646629121278,23.485,82.591,82.54,32.852]
[1646629121677,1.62926979,82.596,82.541,127.955]
[1646629121888,5.27665385,82.644,82.55,18.1687]
[1646629121889,1.62926979,82.605,82.55,18.1687]
[1646629122089,3.27618035,82.628,82.55,18.1687]
[1646629122090,1.62926979,82.613,82.551,127.955]
[1646629122294,1.62926979,82.612,82.551,127.955]
[1646629122499,1.62926979,82.612,82.551,130.79113526]
[1646629122690,61.36314769,82.629,82.551,182.1603414]
[1646629122890,61.36314769,82.629,82.552,2.83613526]
[1646629123089,61.36314769,82.629,82.553,6.053]
[1646629123688,61.36314769,82.629,82.554,2.83613526]
[1646629123889,61.36314769,82.629,82.557,121.9]
[1646629124091,61.36314769,82.629,82.57,14.68]
[1646629124290,59.7338779,82.629,82.571,6.053]
[1646629124491,61.36314769,82.629,82.571,6.053]
[1646629124691,59.7338779,82.629,82.571,6.053]
[1646629125090,59.7338779,82.629,82.57,14.68]
[1646629125091,6.053,82.628,82.57,14.68]
[1646629126092,6.053,82.628,82.57,32.8446]
[1646629126292,59.7338779,82.629,82.571,6.053]
[1646629126892,1.62926979,82.634,82.571,6.053]
[1646629127392,1.62926979,82.635,82.571,6.053]
[1646629127791,59.28342559,82.634,82.571,6.053]
[1646629128091,1.62926979,82.633,82.571,6.053]
[1646629128292,24.83366979,82.632,82.571,6.053]
[1646629128492,23.2044,82.632,82.571,6.053]
[1646629128695,24.83366979,82.632,82.571,6.053]
[1646629128893,24.83366979,82.632,82.557,24.0119]
[1646629129093,2.83613526,82.631,82.557,24.0119]
[1646629129294,2.83613526,82.631,82.546,2.83613526]
[1646629129295,124.73613526,82.631,82.546,2.83613526]
[1646629129495,1.62926979,82.62,82.54,14.68]
[1646629129695,5.30496799,82.618,82.54,14.68]
[1646629129895,6.054,82.617,82.54,14.68]
[1646629130098,129.58326979,82.617,82.541,60.91055597]
[1646629130295,23.2044,82.616,82.541,60.91055597]
[1646629130497,6.054,82.615,82.541,60.91055597]
[1646629130894,8.89013526,82.615,82.541,60.91055597]
[1646629131094,2.83613526,82.614,82.541,60.91055597]
[1646629131298,6.054,82.613,82.541,60.91055597]
[1646629131697,2.83613526,82.612,82.54,14.68]
[1646629131895,6.055,82.611,82.54,14.68]
[1646629132695,6.055,82.611,82.541,64.75403156]
[1646629132896,2.83613526,82.612,82.542,6.055]
[1646629133299,23.2044,82.616,82.542,127.955]
[1646629133499,2.83613526,82.628,82.544,121.9]
[1646629133699,3.27618035,82.658,82.571,121.9]
[1646629133700,1.62926979,82.658,82.571,121.9]
[1646629133905,1.62926979,82.673,82.581,121.9]
[1646629134100,23.5673,82.695,82.591,121.9]
[1646629134101,1.62926979,82.692,82.591,121.9]
[1646629134299,6.051,82.695,82.601,121.9]
[1646629134499,1.62926979,82.701,82.611,121.9]
[1646629134701,1.62926979,82.708,82.641,121.9]
[1646629134900,1.62926979,82.72,82.65,14.68]
[1646629135200,6.047,82.719,82.65,14.68]
[1646629135501,55.769441,82.72,82.65,14.68]
[1646629135700,57.39871079,82.72,82.651,6.047]
[1646629135900,121.9,82.719,82.651,6.047]
[1646629136102,123.52926979,82.719,82.651,6.047]
[1646629136300,57.39871079,82.72,82.651,6.047]
[1646629136513,1.62926979,82.716,82.651,6.047]
[1646629136799,1.62926979,82.714,82.651,6.047]
[1646629136999,6.047,82.713,82.651,6.047]
[1646629137204,4.90357921,82.712,82.651,6.047]
[1646629137401,6.047,82.711,82.651,6.047]
[1646629137602,6.047,82.712,82.651,6.047]
[1646629138008,1.62926979,82.715,82.651,6.047]
[1646629138203,1.62926979,82.711,82.651,6.047]
[1646629138404,1.62926979,82.707,82.651,6.047]
[1646629138703,6.047,82.706,82.651,6.047]
[1646629139008,1.62926979,82.708,82.651,6.047]
[1646629139205,6.047,82.707,82.651,6.047]
[1646629139603,1.62926979,82.714,82.651,6.047]
[1646629139803,6.047,82.713,82.651,6.047]
[1646629140005,7.67626979,82.716,82.651,6.047]
[1646629140204,123.52926979,82.714,82.651,6.047]
[1646629140404,6.047,82.713,82.651,6.047]
[1646629140805,23.746,82.719,82.651,6.047]
[1646629141006,23.746,82.719,82.66,18.143]
[1646629141207,3.27618035,82.751,82.66,18.143]
[1646629141208,6.046,82.727,82.66,18.143]
[1646629141409,6.046,82.73,82.66,32.823]
[1646629141709,6.046,82.744,82.661,124.73613526]
[1646629141905,1.62926979,82.764,82.661,124.73613526]
[1646629142105,1.62926979,82.763,82.681,121.9]
[1646629142306,6.045,82.762,82.69,14.68]
[1646629142505,6.043,82.763,82.69,14.68]
[1646629142707,63.16110604,82.743,82.691,56.65437903]
[1646629143306,6.043,82.763,82.691,56.65437903]
[1646629143508,6.043,82.769,82.691,56.65437903]
[1646629143708,114.5,82.758,82.691,56.65437903]
[1646629144408,57.9448302,82.757,82.691,56.65437903]
[1646629144608,6.043,82.756,82.691,56.65437903]
[1646629145207,114.5,82.758,82.701,121.9]
[1646629145407,114.5,82.758,82.711,121.9]
[1646629145606,114.5,82.758,82.72,14.68]
[1646629145806,114.5,82.758,82.73,14.68]
[1646629148510,114.5,82.758,82.73,32.8081]
[1646629148711,114.5,82.758,82.731,2.83613526]
[1646629149311,100.0,82.8,82.731,124.73613526]
[1646629149711,100.0,82.8,82.741,121.9]
[1646629149911,100.0,82.8,82.751,121.9]
[1646629150111,100.0,82.8,82.761,121.9]
[1646629150310,100.0,82.8,82.77,14.68]
[1646629150710,100.0,82.8,82.771,2.83613526]
[1646629150914,62.25712131,82.799,82.771,2.83613526]
[1646629151112,62.25712131,82.799,82.77,14.68]
[1646629154914,75.0,82.798,82.731,24.3603]
[1646629155115,75.0,82.798,82.74,14.68]
[1646629155314,53.757,82.797,82.74,14.68]
[1646629156113,47.717,82.797,82.74,14.68]
[1646629156513,62.25712131,82.799,82.74,14.68]
[1646629157114,62.25712131,82.799,82.74,17.51613526]
[1646629157318,100.0,82.8,82.741,121.9]
[1646629157514,100.0,82.8,82.751,121.9]
[1646629157713,100.0,82.8,82.76,14.68]
[1646629158314,60.23135491,82.799,82.761,54.54514699]
[1646629158513,60.23135491,82.799,82.77,18.1215]
[1646629158713,60.23135491,82.799,82.77,32.8015]
[1646629161915,60.23135491,82.799,82.77,14.68]
[1646629162315,60.23135491,82.799,82.75,14.68]
[1646629164816,60.23135491,82.799,82.74,18.1281]
[1646629166216,6.04,82.798,82.74,18.1281]
[1646629168221,127.94,82.798,82.73,64.91640633]
[1646629168420,23.2293,82.797,82.73,14.68]
[1646629168621,6.041,82.796,82.73,14.68]
[1646629169722,6.041,82.796,82.731,54.4742911]
[1646629171027,5.541,82.796,82.731,54.4742911]
[1646629171526,1.62926979,82.795,82.731,54.4742911]
[1646629171730,114.5,82.791,82.731,54.4742911]
[1646629173329,1.62926979,82.787,82.731,54.4742911]
[1646629173531,52.7753673,82.786,82.731,54.4742911]
[1646629173729,54.40463709,82.786,82.731,54.4742911]
[1646629173932,54.40463709,82.786,82.73,32.8102]
[1646629174132,1.74720463,82.785,82.73,32.8102]
[1646629174733,0.11793484,82.785,82.73,32.8102]
[1646629174935,1.62926979,82.783,82.73,32.8102]
[1646629175536,1.62926979,82.774,82.73,32.8102]
[1646629175733,52.70529164,82.773,82.73,32.8102]
[1646629176134,1.62926979,82.772,82.73,32.8102]
[1646629176335,1.62926979,82.771,82.73,14.68]
[1646629176834,0.26026818,82.768,82.72,14.68]
[1646629177836,1.62926979,82.768,82.72,14.68]
[1646629178454,1.62926979,82.766,82.72,14.68]
[1646629179055,1.62926979,82.767,82.72,14.68]
[1646629179658,1.62926979,82.767,82.72,32.8122]
[1646629180362,1.62926979,82.765,82.72,32.8122]
[1646629180563,1.62926979,82.766,82.72,32.8122]
[1646629181564,1.62926979,82.767,82.72,32.8122]
[1646629182164,1.62926979,82.766,82.72,32.8122]
[1646629182363,1.62926979,82.767,82.72,32.8122]
[1646629182565,1.62926979,82.768,82.72,32.8122]
[1646629185874,1.62926979,82.77,82.72,32.8122]
[1646629186272,1.62926979,82.772,82.721,121.9]
[1646629186470,1.62926979,82.772,82.73,18.1269]
[1646629186674,1.62926979,82.78,82.74,14.68]
[1646629186874,24.1471,82.785,82.74,14.68]
[1646629186875,1.62926979,82.783,82.74,14.68]
[1646629187073,1.62926979,82.779,82.74,14.68]
[1646629187275,1.62926979,82.778,82.74,14.68]
[1646629187473,47.21531602,82.778,82.74,14.68]
[1646629188074,1.62926979,82.774,82.74,14.68]
[1646629188277,1.62926979,82.772,82.74,14.68]
[1646629189375,1.62926979,82.77,82.74,14.68]
[1646629190577,1.62926979,82.77,82.714,23.1214]
[1646629190777,1.62926979,82.769,82.72,14.68]
[1646629191479,1.62926979,82.767,82.72,14.68]
[1646629192578,1.62926979,82.768,82.72,14.68]
[1646629192778,1.62926979,82.769,82.72,14.68]
[1646629192978,45.58604623,82.778,82.72,14.68]
[1646629192979,1.62926979,82.765,82.72,14.68]
[1646629193379,1.62926979,82.763,82.72,14.68]
[1646629193582,1.62926979,82.76,82.72,14.68]
[1646629193979,53.17016483,82.759,82.72,14.68]
[1646629194179,53.17016483,82.759,82.712,2.83613526]
[1646629194680,1.62926979,82.758,82.712,2.83613526]
[1646629194882,7.74926979,82.758,82.7,14.68]
[1646629195079,1.62926979,82.756,82.707,2.83613526]
[1646629195280,1.62926979,82.755,82.707,2.83613526]
[1646629195481,1.62926979,82.756,82.707,2.83613526]
[1646629196681,1.62926979,82.757,82.708,6.043]
[1646629197183,1.62926979,82.757,82.709,2.83613526]
[1646629197381,1.62926979,82.757,82.71,6.043]
[1646629197782,1.62926979,82.757,82.711,2.83613526]
[1646629199481,1.62926979,82.757,82.712,6.043]
[1646629199682,1.62926979,82.754,82.712,6.043]
[1646629199881,1.62926979,82.753,82.712,6.043]
[1646629200683,1.62926979,82.752,82.696,49.47246945]
[1646629200883,1.62926979,82.752,82.69,14.68]
[1646629201689,1.62926979,82.751,82.691,6.043]
[1646629201985,1.62926979,82.751,82.693,58.67040461]
[1646629202185,1.62926979,82.751,82.694,6.043]
[1646629202386,1.62926979,82.752,82.694,6.043]
[1646629202584,1.62926979,82.752,82.693,58.67040461]
[1646629202791,1.62926979,82.752,82.69,32.8193]
[1646629202987,1.62926979,82.751,82.69,32.8193]
[1646629203188,1.62926979,82.752,82.69,32.8193]
[1646629203388,1.62926979,82.753,82.691,6.043]
[1646629204393,1.62926979,82.754,82.681,6.043]
[1646629204589,0.1272152,82.743,82.68,20.723]
[1646629204789,1.62926979,82.741,82.68,6.043]
[1646629205090,6.045,82.74,82.672,6.045]
[1646629205290,183.81187886,82.739,82.672,6.045]
[1646629205494,1.62926979,82.734,82.671,6.045]
[1646629205695,1.62926979,82.725,82.671,6.045]
[1646629205993,1.62926979,82.725,82.651,6.046]
[1646629206194,0.27462543,82.724,82.651,6.046]
[1646629206395,121.9,82.721,82.651,6.046]
[1646629206595,121.9,82.719,82.651,6.046]
[1646629208002,24.9287,82.72,82.651,6.046]
[1646629209202,24.9287,82.72,82.66,18.1472]
[1646629209604,121.9,82.719,82.66,18.1472]
[1646629209804,127.946,82.719,82.66,18.1472]
[1646629212121,127.946,82.719,82.66,20.98333526]
[1646629212519,121.9,82.719,82.66,20.98333526]
[1646629212719,121.9,82.719,82.66,18.1472]
[1646629215923,6.046,82.718,82.66,18.1472]
[1646629216324,6.046,82.718,82.661,49.23562565]
[1646629219032,6.046,82.718,82.66,18.1472]
[1646629220033,6.046,82.718,82.66,80.77888682]
[1646629222738,6.046,82.718,82.66,78.58328682]
[1646629223837,6.046,82.718,82.66,15.9516]
[1646629224841,121.9,82.719,82.66,15.9516]
[1646629225640,24.9287,82.72,82.66,15.9516]
[1646629226246,1.62926979,82.727,82.661,141.49127237]
[1646629226442,6.046,82.75,82.68,18.1344]
[1646629226640,6.046,82.75,82.68,32.8144]
[1646629226641,24.2773,82.749,82.68,32.8144]
[1646629226842,24.2773,82.749,82.68,35.65053526]
[1646629227040,64.06937957,82.73,82.681,55.83352686]
[1646629228141,64.06937957,82.73,82.69,18.1394]
[1646629228440,64.06937957,82.73,82.69,32.8194]
[1646629231642,64.06937957,82.73,82.69,14.68]
[1646629233041,64.06937957,82.73,82.69,32.8188]
[1646629233241,25.90656979,82.749,82.69,32.8188]
[1646629233544,24.2773,82.749,82.69,32.8188]
[1646629233743,25.90656979,82.749,82.69,32.8188]
[1646629233943,24.2773,82.749,82.69,32.8188]
[1646629234346,48.29697332,82.748,82.69,32.8188]
[1646629241250,6.043,82.754,82.691,121.9]
[1646629241452,1.62926979,82.766,82.711,121.9]
[1646629241649,1.62926979,82.791,82.72,14.68]
[1646629241851,1.62926979,82.793,82.721,0.48643267]
[1646629242054,1.62926979,82.794,82.721,122.38643267]
[1646629242255,1.62926979,82.794,82.723,121.9]
[1646629242453,101.62926979,82.8,82.741,121.9]
[1646629242650,101.62926979,82.8,82.724,0.48643267]
[1646629242651,100.0,82.8,82.75,14.68]
[1646629242853,100.0,82.8,82.76,14.68]
[1646629243051,100.0,82.8,82.761,60.41997989]
[1646629243651,100.0,82.8,82.76,14.68]
[1646629244553,100.0,82.8,82.761,48.02161205]
[1646629244753,100.0,82.8,82.76,14.68]
[1646629246258,100.0,82.8,82.76,32.8037]
[1646629247263,100.0,82.8,82.76,14.68]
[1646629248464,121.9,82.799,82.73,14.68]
[1646629248666,6.041,82.798,82.73,14.68]
[1646629249264,6.041,82.798,82.731,62.9655659]
[1646629249465,24.0391,82.799,82.731,62.9655659]
[1646629249665,100.0,82.8,82.732,121.9]
[1646629249965,100.0,82.8,82.733,27.58189959]
[1646629250166,100.0,82.8,82.734,121.9]
[1646629250365,100.0,82.8,82.734,124.73613526]
[1646629250568,100.0,82.8,82.736,121.9]
[1646629250766,100.0,82.8,82.751,61.23910937]
[1646629250967,100.0,82.8,82.761,121.9]